[Event "Titled Tuesday Blitz November 22 Late 2022"]
[White "Maatman, Nick"]
[Black "Pino Perez, Lazaro"]
[WhiteFideId "1040391"]
[BlackFideId "3517055"]
[WhiteElo "2605"]
[BlackElo "2170"]
[Result "1-0"]
[Round "03"]
[TimeControl "180+1"]
[Date "2022.11.23"]
[WhiteClock "0:01:27"]
[BlackClock "0:00:06"]

1. d4 {[%clk 0:03:00]}  d5 {[%clk 0:02:59]} 2. c4 {[%clk 0:03:00]}  e6 {[%clk 0:02:59]} 3. Nf3 {[%clk 0:03:00]}  Nf6 {[%clk 0:02:58]} 4. g3 {[%clk 0:03:00]}  dxc4 {[%clk 0:02:58]} 5. Bg2 {[%clk 0:03:00]}  c5 {[%clk 0:02:56]} 6. O-O {[%clk 0:03:00]}  Nc6 {[%clk 0:02:52]} 7. dxc5 {[%clk 0:02:58]}  Qxd1 {[%clk 0:02:38]} 8. Rxd1 {[%clk 0:02:59]}  Bxc5 {[%clk 0:02:38]} 9. Nbd2 {[%clk 0:02:59]}  c3 {[%clk 0:02:30]} 10. bxc3 {[%clk 0:03:00]}  O-O {[%clk 0:02:30]} 11. Nb3 {[%clk 0:03:00]}  Be7 {[%clk 0:02:27]} 12. c4 {[%clk 0:03:00]}  Bd7 {[%clk 0:02:16]} 13. Nfd4 {[%clk 0:02:54]}  Rac8 {[%clk 0:01:42]} 14. Be3 {[%clk 0:02:45]}  Ne5 {[%clk 0:01:31]} 15. c5 {[%clk 0:02:22]}  Nc4 {[%clk 0:01:25]} 16. Bg5 {[%clk 0:02:17]}  h6 {[%clk 0:00:58]} 17. Bxf6 {[%clk 0:02:17]}  Bxf6 {[%clk 0:00:59]} 18. Bxb7 {[%clk 0:02:16]}  Rc7 {[%clk 0:00:53]} 19. c6 {[%clk 0:02:09]}  Bc8 {[%clk 0:00:53]} 20. Rac1 {[%clk 0:02:01]}  Ne5 {[%clk 0:00:25]} 21. Nb5 {[%clk 0:01:59]}  Rxb7 {[%clk 0:00:23]} 22. cxb7 {[%clk 0:01:58]}  Bxb7 {[%clk 0:00:24]} 23. Nd6 {[%clk 0:01:54]}  Bd5 {[%clk 0:00:24]} 24. e4 {[%clk 0:01:49]}  Ba8 {[%clk 0:00:22]} 25. f4 {[%clk 0:01:48]}  Ng4 {[%clk 0:00:18]} 26. e5 {[%clk 0:01:47]}  Be7 {[%clk 0:00:17]} 27. Rc7 {[%clk 0:01:46]}  Bd8 {[%clk 0:00:17]} 28. Rdc1 {[%clk 0:01:36]}  Ne3 {[%clk 0:00:13]} 29. Nc8 {[%clk 0:01:28]}  Nd5 {[%clk 0:00:13]} 30. Rxa7 {[%clk 0:01:28]}  Nb4 {[%clk 0:00:06]} 31. Rxa8 {[%clk 0:01:27]} 1-0


[Site "https://www.chess.com"]

[Event "Titled Tuesday Blitz November 22 Late 2022"]
[White "Maksimovic, Bojan"]
[Black "Firouzja, Alireza"]
[WhiteFideId "14408120"]
[BlackFideId "12573981"]
[WhiteElo "2447"]
[BlackElo "2903"]
[Result "0-1"]
[Round "03"]
[TimeControl "180+1"]
[Date "2022.11.22"]
[WhiteClock "0:01:54"]
[BlackClock "0:02:08"]

1. e4 {[%clk 0:03:00]}  g6 {[%clk 0:02:57]} 2. d4 {[%clk 0:03:00]}  Bg7 {[%clk 0:02:58]} 3. Nc3 {[%clk 0:03:01]}  d6 {[%clk 0:02:58]} 4. f4 {[%clk 0:03:01]}  Nf6 {[%clk 0:02:56]} 5. Nf3 {[%clk 0:03:02]}  O-O {[%clk 0:02:56]} 6. e5 {[%clk 0:03:02]}  Nfd7 {[%clk 0:02:56]} 7. Bc4 {[%clk 0:02:58]}  c5 {[%clk 0:02:48]} 8. e6 {[%clk 0:02:57]}  Nb6 {[%clk 0:02:48]} 9. exf7+ {[%clk 0:02:54]}  Kh8 {[%clk 0:02:48]} 10. Be2 {[%clk 0:02:51]}  cxd4 {[%clk 0:02:37]} 11. Nxd4 {[%clk 0:02:51]}  Rxf7 {[%clk 0:02:38]} 12. Be3 {[%clk 0:02:51]}  Nc6 {[%clk 0:02:37]} 13. Qd2 {[%clk 0:02:50]}  Bd7 {[%clk 0:02:37]} 14. Nxc6 {[%clk 0:02:38]}  Bxc6 {[%clk 0:02:37]} 15. O-O {[%clk 0:02:38]}  Nd7 {[%clk 0:02:25]} 16. Bd4 {[%clk 0:02:37]}  Qa5 {[%clk 0:02:17]} 17. Bxg7+ {[%clk 0:02:34]}  Kxg7 {[%clk 0:02:17]} 18. Qd4+ {[%clk 0:02:24]}  e5 {[%clk 0:02:11]} 19. fxe5 {[%clk 0:02:21]}  Rxf1+ {[%clk 0:02:10]} 20. Rxf1 {[%clk 0:02:20]}  dxe5 {[%clk 0:02:10]} 21. Qd6 {[%clk 0:01:55]}  Qb6+ {[%clk 0:02:09]} 22. Kh1 {[%clk 0:01:54]}  Bxg2+ {[%clk 0:02:08]} 0-1


[Site "https://www.chess.com"]

[Event "Titled Tuesday Blitz November 22 Late 2022"]
[White "Martinez Alcantara, Jose Eduardo"]
[Black "Popilski, Gil"]
[WhiteFideId "3805662"]
[BlackFideId "2809060"]
[WhiteElo "2705"]
[BlackElo "2537"]
[Result "1-0"]
[Round "03"]
[TimeControl "180+1"]
[Date "2022.11.22"]
[WhiteClock "0:00:08"]
[BlackClock "0:00:01"]

1. e4 {[%clk 0:03:00]}  e5 {[%clk 0:02:57]} 2. Nf3 {[%clk 0:03:00]}  Nf6 {[%clk 0:02:57]} 3. Nxe5 {[%clk 0:03:00]}  d6 {[%clk 0:02:57]} 4. Nf3 {[%clk 0:03:01]}  Nxe4 {[%clk 0:02:56]} 5. d4 {[%clk 0:03:02]}  d5 {[%clk 0:02:57]} 6. Bd3 {[%clk 0:03:03]}  Bd6 {[%clk 0:02:57]} 7. O-O {[%clk 0:03:04]}  O-O {[%clk 0:02:58]} 8. c4 {[%clk 0:03:04]}  c6 {[%clk 0:02:58]} 9. Re1 {[%clk 0:03:03]}  Bf5 {[%clk 0:02:56]} 10. Qc2 {[%clk 0:02:58]}  Na6 {[%clk 0:02:54]} 11. a3 {[%clk 0:02:58]}  Bg6 {[%clk 0:02:50]} 12. c5 {[%clk 0:02:48]}  Bc7 {[%clk 0:02:39]} 13. Nc3 {[%clk 0:02:48]}  f5 {[%clk 0:02:38]} 14. Ne2 {[%clk 0:02:47]}  Bh5 {[%clk 0:02:37]} 15. Ng3 {[%clk 0:02:37]}  Bg6 {[%clk 0:02:10]} 16. b4 {[%clk 0:02:29]}  Qf6 {[%clk 0:02:08]} 17. Bb2 {[%clk 0:02:23]}  Rae8 {[%clk 0:02:03]} 18. Ne5 {[%clk 0:02:23]}  Nb8 {[%clk 0:01:59]} 19. f3 {[%clk 0:02:17]}  Ng5 {[%clk 0:01:48]} 20. Ne2 {[%clk 0:02:05]}  Ne6 {[%clk 0:01:45]} 21. f4 {[%clk 0:02:04]}  Bh5 {[%clk 0:01:43]} 22. Qd2 {[%clk 0:02:04]}  Qh6 {[%clk 0:01:37]} 23. Rf1 {[%clk 0:01:53]}  Bxe2 {[%clk 0:01:27]} 24. Bxe2 {[%clk 0:01:54]}  Bxe5 {[%clk 0:01:22]} 25. dxe5 {[%clk 0:01:55]}  Nd7 {[%clk 0:01:23]} 26. Rae1 {[%clk 0:01:55]}  g5 {[%clk 0:01:20]} 27. g3 {[%clk 0:01:47]}  gxf4 {[%clk 0:01:19]} 28. gxf4 {[%clk 0:01:48]}  Kh8 {[%clk 0:01:17]} 29. Bd3 {[%clk 0:01:48]}  Rf7 {[%clk 0:01:16]} 30. Kh1 {[%clk 0:01:48]}  Rg8 {[%clk 0:01:15]} 31. Rf3 {[%clk 0:01:45]}  Rg4 {[%clk 0:01:15]} 32. Ref1 {[%clk 0:01:45]}  Ndf8 {[%clk 0:01:15]} 33. Qc2 {[%clk 0:01:40]}  Qh5 {[%clk 0:01:08]} 34. Be2 {[%clk 0:01:38]}  Qh6 {[%clk 0:01:05]} 35. R3f2 {[%clk 0:01:35]}  Rh4 {[%clk 0:00:57]} 36. Bd3 {[%clk 0:01:30]}  Qh5 {[%clk 0:00:53]} 37. Qe2 {[%clk 0:01:29]}  Qxe2 {[%clk 0:00:50]} 38. Bxe2 {[%clk 0:01:25]}  Ng6 {[%clk 0:00:51]} 39. Bd1 {[%clk 0:01:20]}  Kg8 {[%clk 0:00:44]} 40. Bc1 {[%clk 0:01:20]}  Kf8 {[%clk 0:00:43]} 41. a4 {[%clk 0:01:19]}  a5 {[%clk 0:00:39]} 42. bxa5 {[%clk 0:01:19]}  Ke8 {[%clk 0:00:37]} 43. a6 {[%clk 0:01:19]}  bxa6 {[%clk 0:00:37]} 44. a5 {[%clk 0:01:16]}  Nxc5 {[%clk 0:00:36]} 45. Be2 {[%clk 0:01:02]}  Rb7 {[%clk 0:00:32]} 46. Rg2 {[%clk 0:00:58]}  Rb3 {[%clk 0:00:24]} 47. Kg1 {[%clk 0:00:55]}  Rb4 {[%clk 0:00:10]} 48. Ba3 {[%clk 0:00:53]}  Nxf4 {[%clk 0:00:04]} 49. Bxb4 {[%clk 0:00:51]}  Nxe2+ {[%clk 0:00:04]} 50. Rxe2 {[%clk 0:00:51]}  Rxb4 {[%clk 0:00:05]} 51. Rxf5 {[%clk 0:00:51]}  Ne6 {[%clk 0:00:05]} 52. Ref2 {[%clk 0:00:47]}  Rb5 {[%clk 0:00:06]} 53. Rf6 {[%clk 0:00:47]}  Ke7 {[%clk 0:00:06]} 54. Rf7+ {[%clk 0:00:48]}  Ke8 {[%clk 0:00:07]} 55. Rxh7 {[%clk 0:00:47]}  d4 {[%clk 0:00:07]} 56. Rg2 {[%clk 0:00:38]}  Kf8 {[%clk 0:00:06]} 57. Rf2+ {[%clk 0:00:37]}  Kg8 {[%clk 0:00:05]} 58. Re7 {[%clk 0:00:36]}  Rxe5 {[%clk 0:00:06]} 59. Rf6 {[%clk 0:00:33]}  Rg5+ {[%clk 0:00:06]} 60. Kf1 {[%clk 0:00:32]}  Nf8 {[%clk 0:00:06]} 61. Rxc6 {[%clk 0:00:32]}  Rxa5 {[%clk 0:00:06]} 62. Rd6 {[%clk 0:00:32]}  Rf5+ {[%clk 0:00:06]} 63. Kg2 {[%clk 0:00:32]}  Rg5+ {[%clk 0:00:06]} 64. Kh3 {[%clk 0:00:31]}  Rh5+ {[%clk 0:00:06]} 65. Kg3 {[%clk 0:00:32]}  Rg5+ {[%clk 0:00:06]} 66. Kf3 {[%clk 0:00:31]}  Rf5+ {[%clk 0:00:06]} 67. Kg4 {[%clk 0:00:30]}  Rf2 {[%clk 0:00:06]} 68. h4 {[%clk 0:00:30]}  Rg2+ {[%clk 0:00:07]} 69. Kh3 {[%clk 0:00:31]}  Rd2 {[%clk 0:00:07]} 70. Rd8 {[%clk 0:00:30]}  Rd3+ {[%clk 0:00:07]} 71. Kg4 {[%clk 0:00:31]}  Rd1 {[%clk 0:00:08]} 72. Ree8 {[%clk 0:00:31]}  Rg1+ {[%clk 0:00:09]} 73. Kh3 {[%clk 0:00:31]}  Rf1 {[%clk 0:00:09]} 74. Rxd4 {[%clk 0:00:31]}  Kf7 {[%clk 0:00:09]} 75. Ra8 {[%clk 0:00:31]}  Ng6 {[%clk 0:00:09]} 76. Ra7+ {[%clk 0:00:31]}  Kf6 {[%clk 0:00:08]} 77. Rxa6+ {[%clk 0:00:31]}  Kf5 {[%clk 0:00:08]} 78. Ra5+ {[%clk 0:00:28]}  Ne5 {[%clk 0:00:07]} 79. Kg2 {[%clk 0:00:28]}  Re1 {[%clk 0:00:06]} 80. Ra2 {[%clk 0:00:23]}  Kg6 {[%clk 0:00:06]} 81. Rf2 {[%clk 0:00:20]}  Kh5 {[%clk 0:00:04]} 82. Rf6 {[%clk 0:00:17]}  Ng4 {[%clk 0:00:03]} 83. Rff4 {[%clk 0:00:10]}  Re2+ {[%clk 0:00:03]} 84. Kf1 {[%clk 0:00:08]}  Rh2 {[%clk 0:00:01]} 85. Rxg4 {[%clk 0:00:08]}  Ra2 {[%clk 0:00:01]} 86. Rge4 {[%clk 0:00:08]} 1-0


[Site "https://www.chess.com"]

[Event "Titled Tuesday Blitz November 22 Late 2022"]
[White "Melikyan, Gnel"]
[Black "Novikova, Galina"]
[WhiteFideId "54109990"]
[BlackFideId "4157095"]
[WhiteElo "2627"]
[BlackElo "2369"]
[Result "1-0"]
[Round "03"]
[TimeControl "180+1"]
[Date "2022.11.23"]
[WhiteClock "0:00:13"]
[BlackClock "0:00:01"]

1. a3 {[%clk 0:02:58]}  e6 {[%clk 0:02:59]} 2. d4 {[%clk 0:02:57]}  d5 {[%clk 0:02:59]} 3. c4 {[%clk 0:02:56]}  a5 {[%clk 0:02:48]} 4. Nc3 {[%clk 0:02:52]}  c6 {[%clk 0:02:48]} 5. e4 {[%clk 0:02:51]}  dxe4 {[%clk 0:02:44]} 6. Nxe4 {[%clk 0:02:47]}  Be7 {[%clk 0:02:45]} 7. Nf3 {[%clk 0:02:45]}  Nf6 {[%clk 0:02:45]} 8. Bd3 {[%clk 0:02:41]}  Nbd7 {[%clk 0:02:40]} 9. O-O {[%clk 0:02:38]}  Nxe4 {[%clk 0:02:40]} 10. Bxe4 {[%clk 0:02:36]}  Nf6 {[%clk 0:02:41]} 11. Bc2 {[%clk 0:02:36]}  O-O {[%clk 0:02:36]} 12. Re1 {[%clk 0:02:22]}  b6 {[%clk 0:02:36]} 13. Ne5 {[%clk 0:02:16]}  Bb7 {[%clk 0:02:27]} 14. b3 {[%clk 0:02:03]}  c5 {[%clk 0:02:20]} 15. Bb2 {[%clk 0:01:55]}  cxd4 {[%clk 0:02:13]} 16. Qxd4 {[%clk 0:01:53]}  Qc7 {[%clk 0:02:10]} 17. Ng4 {[%clk 0:01:46]}  Rad8 {[%clk 0:02:02]} 18. Qc3 {[%clk 0:01:15]}  Qf4 {[%clk 0:01:51]} 19. Nxf6+ {[%clk 0:00:43]}  Bxf6 {[%clk 0:01:49]} 20. Qh3 {[%clk 0:00:43]}  h6 {[%clk 0:01:27]} 21. Bxf6 {[%clk 0:00:41]}  Qxf6 {[%clk 0:01:28]} 22. Qe3 {[%clk 0:00:21]}  Rd4 {[%clk 0:01:05]} 23. Rad1 {[%clk 0:00:17]}  Rg4 {[%clk 0:01:02]} 24. g3 {[%clk 0:00:13]}  g6 {[%clk 0:00:37]} 25. h3 {[%clk 0:00:12]}  Rg5 {[%clk 0:00:37]} 26. f4 {[%clk 0:00:08]}  Rc5 {[%clk 0:00:36]} 27. Qd4 {[%clk 0:00:07]}  e5 {[%clk 0:00:26]} 28. Qd6 {[%clk 0:00:05]}  Qxd6 {[%clk 0:00:25]} 29. Rxd6 {[%clk 0:00:06]}  exf4 {[%clk 0:00:25]} 30. gxf4 {[%clk 0:00:06]}  b5 {[%clk 0:00:19]} 31. Rb6 {[%clk 0:00:06]}  Bc6 {[%clk 0:00:12]} 32. Bd3 {[%clk 0:00:06]}  bxc4 {[%clk 0:00:12]} 33. Bxc4 {[%clk 0:00:07]}  Bd5 {[%clk 0:00:10]} 34. Re5 {[%clk 0:00:07]}  Rd8 {[%clk 0:00:09]} 35. Kf2 {[%clk 0:00:08]}  f6 {[%clk 0:00:06]} 36. Rxd5 {[%clk 0:00:07]}  Rcxd5 {[%clk 0:00:06]} 37. Rb5 {[%clk 0:00:07]}  Kg7 {[%clk 0:00:04]} 38. Rxd5 {[%clk 0:00:08]}  Rb8 {[%clk 0:00:04]} 39. Rd7+ {[%clk 0:00:08]}  Kh8 {[%clk 0:00:04]} 40. a4 {[%clk 0:00:08]}  g5 {[%clk 0:00:03]} 41. Rf7 {[%clk 0:00:08]}  gxf4 {[%clk 0:00:03]} 42. Rxf6 {[%clk 0:00:09]}  Kg7 {[%clk 0:00:03]} 43. Rxf4 {[%clk 0:00:09]}  Kg6 {[%clk 0:00:04]} 44. Rg4+ {[%clk 0:00:09]}  Kh5 {[%clk 0:00:04]} 45. Rd4 {[%clk 0:00:09]}  Rf8+ {[%clk 0:00:03]} 46. Kg3 {[%clk 0:00:10]}  Re8 {[%clk 0:00:02]} 47. Rd5+ {[%clk 0:00:11]}  Kg6 {[%clk 0:00:01]} 48. Rxa5 {[%clk 0:00:11]}  Re3+ {[%clk 0:00:01]} 49. Kg4 {[%clk 0:00:11]}  Rc3 {[%clk 0:00:02]} 50. Ra7 {[%clk 0:00:11]}  h5+ {[%clk 0:00:03]} 51. Kh4 {[%clk 0:00:10]}  Kf5 {[%clk 0:00:03]} 52. Ra5+ {[%clk 0:00:10]}  Kf6 {[%clk 0:00:02]} 53. Rxh5 {[%clk 0:00:11]}  Rc1 {[%clk 0:00:02]} 54. Rc5 {[%clk 0:00:11]}  Kg7 {[%clk 0:00:03]} 55. Kg5 {[%clk 0:00:11]}  Rg1+ {[%clk 0:00:02]} 56. Kf4 {[%clk 0:00:12]}  Kh8 {[%clk 0:00:02]} 57. Ke5 {[%clk 0:00:10]}  Rg7 {[%clk 0:00:02]} 58. Kd6 {[%clk 0:00:11]}  Rg6+ {[%clk 0:00:02]} 59. Kc7 {[%clk 0:00:11]}  Rg7+ {[%clk 0:00:02]} 60. Kb6 {[%clk 0:00:11]}  Rf7 {[%clk 0:00:01]} 61. Rc6 {[%clk 0:00:12]}  Re7 {[%clk 0:00:02]} 62. a5 {[%clk 0:00:12]}  Rd7 {[%clk 0:00:01]} 63. a6 {[%clk 0:00:13]}  Re7 {[%clk 0:00:02]} 64. a7 {[%clk 0:00:13]}  Re8 {[%clk 0:00:02]} 65. Kb7 {[%clk 0:00:13]}  Re7+ {[%clk 0:00:02]} 66. Rc7 {[%clk 0:00:14]}  Re8 {[%clk 0:00:02]} 67. b4 {[%clk 0:00:13]}  Re4 {[%clk 0:00:01]} 68. a8=Q+ {[%clk 0:00:13]}  Re8 {[%clk 0:00:01]} 69. Qxe8# {[%clk 0:00:13]} 1-0


[Site "https://www.chess.com"]

[Event "Titled Tuesday Blitz November 22 Late 2022"]
[White "Melkumyan, Hrant"]
[Black "Nasuta, Grzegorz"]
[WhiteFideId "13302485"]
[BlackFideId "1141686"]
[WhiteElo "2604"]
[BlackElo "2440"]
[Result "1/2-1/2"]
[Round "03"]
[TimeControl "180+1"]
[Date "2022.11.22"]
[WhiteClock "0:00:09"]
[BlackClock "0:00:09"]

1. d4 {[%clk 0:03:00]}  d5 {[%clk 0:02:59]} 2. c4 {[%clk 0:02:58]}  c6 {[%clk 0:02:59]} 3. Nc3 {[%clk 0:02:57]}  e6 {[%clk 0:02:53]} 4. e3 {[%clk 0:02:55]}  Nf6 {[%clk 0:02:51]} 5. Nf3 {[%clk 0:02:53]}  Nbd7 {[%clk 0:02:50]} 6. Be2 {[%clk 0:02:52]}  b6 {[%clk 0:02:44]} 7. O-O {[%clk 0:02:51]}  Bb7 {[%clk 0:02:44]} 8. b3 {[%clk 0:02:47]}  Bd6 {[%clk 0:02:43]} 9. Bb2 {[%clk 0:02:47]}  O-O {[%clk 0:02:43]} 10. Qc2 {[%clk 0:02:48]}  Qe7 {[%clk 0:02:43]} 11. Rad1 {[%clk 0:02:48]}  Rad8 {[%clk 0:02:43]} 12. Rfe1 {[%clk 0:02:48]}  Rfe8 {[%clk 0:02:43]} 13. Bf1 {[%clk 0:02:48]}  e5 {[%clk 0:02:40]} 14. dxe5 {[%clk 0:02:38]}  Nxe5 {[%clk 0:02:37]} 15. Nxe5 {[%clk 0:02:38]}  Bxe5 {[%clk 0:02:27]} 16. cxd5 {[%clk 0:02:32]}  Qc5 {[%clk 0:02:16]} 17. Bd3 {[%clk 0:02:09]}  cxd5 {[%clk 0:00:57]} 18. Na4 {[%clk 0:01:50]}  Qd6 {[%clk 0:00:43]} 19. Bxe5 {[%clk 0:01:38]}  Qxe5 {[%clk 0:00:43]} 20. Qc3 {[%clk 0:01:29]}  Qxc3 {[%clk 0:00:40]} 21. Nxc3 {[%clk 0:01:29]}  d4 {[%clk 0:00:41]} 22. exd4 {[%clk 0:01:28]}  Rxe1+ {[%clk 0:00:41]} 23. Rxe1 {[%clk 0:01:29]}  Rxd4 {[%clk 0:00:42]} 24. Bc4 {[%clk 0:01:27]}  Kf8 {[%clk 0:00:31]} 25. f3 {[%clk 0:01:21]}  Rd2 {[%clk 0:00:27]} 26. a4 {[%clk 0:01:21]}  a5 {[%clk 0:00:22]} 27. Rc1 {[%clk 0:01:13]}  Nd7 {[%clk 0:00:21]} 28. Nb5 {[%clk 0:01:03]}  Nc5 {[%clk 0:00:20]} 29. Re1 {[%clk 0:01:01]}  g6 {[%clk 0:00:14]} 30. h4 {[%clk 0:00:54]}  h5 {[%clk 0:00:14]} 31. Re3 {[%clk 0:00:52]}  Bc6 {[%clk 0:00:14]} 32. Nc3 {[%clk 0:00:48]}  Bb7 {[%clk 0:00:13]} 33. Ne2 {[%clk 0:00:48]}  Bd5 {[%clk 0:00:12]} 34. Bxd5 {[%clk 0:00:33]}  Rxd5 {[%clk 0:00:12]} 35. Nf4 {[%clk 0:00:33]}  Rd1+ {[%clk 0:00:12]} 36. Kh2 {[%clk 0:00:33]}  Rb1 {[%clk 0:00:12]} 37. Nd5 {[%clk 0:00:33]}  Rxb3 {[%clk 0:00:11]} 38. Rxb3 {[%clk 0:00:33]}  Nxb3 {[%clk 0:00:12]} 39. Nxb6 {[%clk 0:00:33]}  Ke7 {[%clk 0:00:13]} 40. g4 {[%clk 0:00:33]}  Kd6 {[%clk 0:00:10]} 41. Kg3 {[%clk 0:00:31]}  Ke5 {[%clk 0:00:08]} 42. Nc4+ {[%clk 0:00:26]}  Kd5 {[%clk 0:00:05]} 43. Nb6+ {[%clk 0:00:23]}  Ke5 {[%clk 0:00:05]} 44. f4+ {[%clk 0:00:13]}  Kf6 {[%clk 0:00:02]} 45. Nd5+ {[%clk 0:00:08]}  Ke6 {[%clk 0:00:02]} 46. Nc7+ {[%clk 0:00:06]}  Kd6 {[%clk 0:00:02]} 47. Nb5+ {[%clk 0:00:06]}  Ke6 {[%clk 0:00:02]} 48. f5+ {[%clk 0:00:06]}  Ke5 {[%clk 0:00:02]} 49. fxg6 {[%clk 0:00:05]}  fxg6 {[%clk 0:00:02]} 50. Nc3 {[%clk 0:00:05]}  Nc5 {[%clk 0:00:02]} 51. Kf3 {[%clk 0:00:04]}  Kd4 {[%clk 0:00:02]} 52. Nb5+ {[%clk 0:00:04]}  Ke5 {[%clk 0:00:03]} 53. Nc3 {[%clk 0:00:04]}  Kd4 {[%clk 0:00:03]} 54. Ne2+ {[%clk 0:00:05]}  Ke5 {[%clk 0:00:03]} 55. Nf4 {[%clk 0:00:06]}  hxg4+ {[%clk 0:00:04]} 56. Kxg4 {[%clk 0:00:06]}  Kf6 {[%clk 0:00:04]} 57. Nd5+ {[%clk 0:00:07]}  Kg7 {[%clk 0:00:05]} 58. Nb6 {[%clk 0:00:05]}  Kf6 {[%clk 0:00:05]} 59. Kf4 {[%clk 0:00:06]}  Ne6+ {[%clk 0:00:05]} 60. Ke4 {[%clk 0:00:06]}  Nc5+ {[%clk 0:00:04]} 61. Kd4 {[%clk 0:00:05]}  Nxa4 {[%clk 0:00:05]} 62. Nxa4 {[%clk 0:00:05]}  Kf5 {[%clk 0:00:05]} 63. Ke3 {[%clk 0:00:03]}  Kg4 {[%clk 0:00:06]} 64. Kf2 {[%clk 0:00:03]}  Kxh4 {[%clk 0:00:06]} 65. Kg2 {[%clk 0:00:04]}  Kg4 {[%clk 0:00:07]} 66. Nb6 {[%clk 0:00:04]}  Kf4 {[%clk 0:00:07]} 67. Kf2 {[%clk 0:00:04]}  Ke4 {[%clk 0:00:06]} 68. Kg3 {[%clk 0:00:04]}  Kd4 {[%clk 0:00:06]} 69. Kg4 {[%clk 0:00:04]}  Kc5 {[%clk 0:00:06]} 70. Na4+ {[%clk 0:00:04]}  Kb5 {[%clk 0:00:07]} 71. Nc3+ {[%clk 0:00:05]}  Kc4 {[%clk 0:00:08]} 72. Na4 {[%clk 0:00:05]}  Kb4 {[%clk 0:00:08]} 73. Nb6 {[%clk 0:00:05]}  Kc5 {[%clk 0:00:08]} 74. Na4+ {[%clk 0:00:06]}  Kb4 {[%clk 0:00:07]} 75. Nb6 {[%clk 0:00:06]}  Kb5 {[%clk 0:00:08]} 76. Nd5 {[%clk 0:00:06]}  a4 {[%clk 0:00:08]} 77. Nc3+ {[%clk 0:00:06]}  Kb4 {[%clk 0:00:08]} 78. Nxa4 {[%clk 0:00:07]}  Kxa4 {[%clk 0:00:09]} 79. Kg5 {[%clk 0:00:08]}  Kb4 {[%clk 0:00:09]} 80. Kxg6 {[%clk 0:00:09]} 1/2-1/2


[Site "https://www.chess.com"]

[Event "Titled Tuesday Blitz November 22 Late 2022"]
[White "Mladek, Richard"]
[Black "Prem, Pranav"]
[WhiteFideId "386588"]
[BlackFideId "30901057"]
[WhiteElo "2637"]
[BlackElo "2403"]
[Result "1-0"]
[Round "03"]
[TimeControl "180+1"]
[Date "2022.11.23"]
[WhiteClock "0:00:42"]
[BlackClock "0:00:02"]

1. d4 {[%clk 0:03:00]}  d5 {[%clk 0:02:58]} 2. c4 {[%clk 0:02:58]}  e6 {[%clk 0:02:56]} 3. Nc3 {[%clk 0:02:58]}  Nf6 {[%clk 0:02:56]} 4. cxd5 {[%clk 0:02:58]}  exd5 {[%clk 0:02:56]} 5. Bg5 {[%clk 0:02:59]}  c6 {[%clk 0:02:56]} 6. e3 {[%clk 0:02:59]}  Ke7 {[%clk 0:02:55]} 7. Bd3 {[%clk 0:02:59]}  Ke8 {[%clk 0:02:32]} 8. Nf3 {[%clk 0:02:57]}  Bg4 {[%clk 0:02:23]} 9. h3 {[%clk 0:02:46]}  Be6 {[%clk 0:01:59]} 10. O-O {[%clk 0:02:43]}  Nbd7 {[%clk 0:01:59]} 11. Ne5 {[%clk 0:02:41]}  Be7 {[%clk 0:01:56]} 12. f4 {[%clk 0:02:41]}  Nf8 {[%clk 0:01:52]} 13. Rc1 {[%clk 0:02:19]}  h6 {[%clk 0:01:48]} 14. Bh4 {[%clk 0:02:17]}  Bc8 {[%clk 0:01:38]} 15. a3 {[%clk 0:02:12]}  Ne6 {[%clk 0:01:20]} 16. Qf3 {[%clk 0:02:07]}  Kf8 {[%clk 0:01:13]} 17. g4 {[%clk 0:01:56]}  Kg8 {[%clk 0:01:06]} 18. Kh1 {[%clk 0:01:54]}  g5 {[%clk 0:00:53]} 19. Bg3 {[%clk 0:01:47]}  Kg7 {[%clk 0:00:51]} 20. f5 {[%clk 0:01:37]}  Nf8 {[%clk 0:00:49]} 21. e4 {[%clk 0:01:37]}  dxe4 {[%clk 0:00:39]} 22. Nxe4 {[%clk 0:01:35]}  N8d7 {[%clk 0:00:16]} 23. Rcd1 {[%clk 0:01:30]}  Re8 {[%clk 0:00:16]} 24. Bc4 {[%clk 0:01:24]}  Rf8 {[%clk 0:00:13]} 25. Kg2 {[%clk 0:01:14]}  Nxe4 {[%clk 0:00:13]} 26. Qxe4 {[%clk 0:01:14]}  Nf6 {[%clk 0:00:14]} 27. Qf3 {[%clk 0:01:13]}  Qb6 {[%clk 0:00:14]} 28. b4 {[%clk 0:01:10]}  a5 {[%clk 0:00:13]} 29. h4 {[%clk 0:01:06]}  axb4 {[%clk 0:00:12]} 30. hxg5 {[%clk 0:01:07]}  hxg5 {[%clk 0:00:12]} 31. Qe3 {[%clk 0:01:04]}  Nd5 {[%clk 0:00:04]} 32. Bxd5 {[%clk 0:00:41]}  cxd5 {[%clk 0:00:05]} 33. Nc4 {[%clk 0:00:41]}  dxc4 {[%clk 0:00:02]} 34. Qxe7 {[%clk 0:00:42]} 1-0


[Site "https://www.chess.com"]

[Event "Titled Tuesday Blitz November 22 Late 2022"]
[White "Musovic, Armin"]
[Black "Rios Escobar, Adan"]
[WhiteFideId "939935"]
[BlackFideId "3403645"]
[WhiteElo "2288"]
[BlackElo "2343"]
[Result "1-0"]
[Round "03"]
[TimeControl "180+1"]
[Date "2022.11.23"]
[WhiteClock "0:01:06"]
[BlackClock "0:00:07"]

1. e4 {[%clk 0:02:58]}  c5 {[%clk 0:02:51]} 2. d3 {[%clk 0:02:57]}  d6 {[%clk 0:02:48]} 3. Nc3 {[%clk 0:02:54]}  g6 {[%clk 0:02:45]} 4. Be2 {[%clk 0:02:54]}  Bg7 {[%clk 0:02:45]} 5. h4 {[%clk 0:02:55]}  h5 {[%clk 0:02:44]} 6. Nf3 {[%clk 0:02:54]}  Nc6 {[%clk 0:02:43]} 7. a3 {[%clk 0:02:52]}  Nf6 {[%clk 0:02:38]} 8. Ng5 {[%clk 0:02:50]}  Rb8 {[%clk 0:02:34]} 9. O-O {[%clk 0:02:42]}  O-O {[%clk 0:02:32]} 10. Nd5 {[%clk 0:02:36]}  b5 {[%clk 0:02:29]} 11. c3 {[%clk 0:02:36]}  a5 {[%clk 0:02:29]} 12. f4 {[%clk 0:02:34]}  b4 {[%clk 0:02:25]} 13. axb4 {[%clk 0:02:31]}  axb4 {[%clk 0:02:26]} 14. Bd2 {[%clk 0:02:31]}  e6 {[%clk 0:02:15]} 15. Nxf6+ {[%clk 0:02:30]}  Bxf6 {[%clk 0:02:14]} 16. g4 {[%clk 0:02:28]}  hxg4 {[%clk 0:02:10]} 17. Bxg4 {[%clk 0:02:28]}  bxc3 {[%clk 0:02:02]} 18. bxc3 {[%clk 0:02:28]}  Rb2 {[%clk 0:01:44]} 19. Rf2 {[%clk 0:02:20]}  Qb6 {[%clk 0:01:41]} 20. h5 {[%clk 0:02:16]}  c4 {[%clk 0:01:28]} 21. d4 {[%clk 0:02:05]}  Nxd4 {[%clk 0:01:16]} 22. hxg6 {[%clk 0:02:00]}  fxg6 {[%clk 0:01:09]} 23. Be3 {[%clk 0:01:44]}  e5 {[%clk 0:01:09]} 24. Bxc8 {[%clk 0:01:39]}  exf4 {[%clk 0:00:52]} 25. Be6+ {[%clk 0:01:34]}  Kg7 {[%clk 0:00:45]} 26. Bxd4 {[%clk 0:01:27]}  Qb8 {[%clk 0:00:32]} 27. Ra7+ {[%clk 0:01:24]}  Rb7 {[%clk 0:00:26]} 28. Rxb7+ {[%clk 0:01:20]}  Qxb7 {[%clk 0:00:27]} 29. Bd5 {[%clk 0:01:16]}  Qe7 {[%clk 0:00:20]} 30. Ne6+ {[%clk 0:01:14]}  Kh6 {[%clk 0:00:16]} 31. Nxf8 {[%clk 0:01:14]}  Bxd4 {[%clk 0:00:14]} 32. Qxd4 {[%clk 0:01:10]}  f3 {[%clk 0:00:10]} 33. Rh2+ {[%clk 0:01:07]}  Kg5 {[%clk 0:00:09]} 34. Qe3+ {[%clk 0:01:08]}  Kf6 {[%clk 0:00:09]} 35. Qf4+ {[%clk 0:01:05]}  Kg7 {[%clk 0:00:07]} 36. Rh7# {[%clk 0:01:06]} 1-0


[Site "https://www.chess.com"]